Workbook

Sheet Sheet1
B1: Picards Method
B2: for the Differential Equation
C3: y' = f(x, y)
B5: This DIGMath graphing utility illustrates
B6: Picard's Method to approximate the solution
B7: of any first order differential equation
C8: y' = f(x, y)
B9: with initial conditions x0 and y0
B10: extending from x = a to x = b.
A12: Enter the function in terms of both x and y:
E13: f( x, y) = | F13: y
A15: Now enter the initial conditions:
B16: The initial value x0 of x is | E16: 0 | I16: Now select which Picard approximations you want to see
B17: The initial value y0 of y is | E17: 1
J18: TRUE
A19: To what value of x should the solutions extend?
C20: b = xMax = | D20: 2 | J20: TRUE
J22: TRUE
J25: FALSE
A26: Click each item below for suggestions and investigations
B27: Item 1
B28: Item 2 | J28: FALSE
B29: Item 3
B30: Item 4 | J30: FALSE
A33: To access/download all the DIGMath Apps for Differential Equations
A34: Click this link: | C34: https://we-dig-math.org/dynamic-differential-equations.html
A36: Created by: Sheldon P. Gordon
A37: Farmingdale State College
A38: Development of this module was supported by the
A39: NSF's Division of Undergraduate Education
A40: under grants DUE-0310123 and DUE-0442160.

Sheet Sheet2
C1: x | D1: y | E1: y' = f(x,y) | F1: y | G1: plotting points
G2: =x0 -> 0 | H2: =y0 -> 1
A3: delta x = | B3: =(b-a)/200 -> 0.01 | C3: =x0 -> 0 | D3: =y0 -> 1 | E3: =y -> 1 | F3: =E3 -> 1
C4: =b -> 2 | D4: =y0 -> 1 | E4: 1 | F4: =F3+E3*dx -> 1.01
C5: =x0 -> 0 | D5: =y0 -> 1 | E5: 1 | F5: =D5+E4*dx -> 1.01 | G5: =x0 -> 0 | H5: =y0 -> 1 | I5: xMin = | J5: =x0 -> 0
C6: =C5+dx -> 0.01 | D6: =F5 -> 1.01 | E6: 1.01 | F6: 1.02 | G6: =IF(Sheet1!J$18=TRUE,Sheet2!C6,x0) -> 0.01 | H6: =IF(Sheet1!J$18=TRUE,Sheet2!D6,y0) -> 1.01
C7: 0.02 | D7: =F6 -> 1.02 | E7: 1.02 | F7: 1.0301 | G7: =IF(Sheet1!J$18=TRUE,Sheet2!C7,x0) -> 0.02 | H7: =IF(Sheet1!J$18=TRUE,Sheet2!D7,y0) -> 1.02
C8: 0.03 | D8: 1.0301 | E8: 1.0301 | F8: 1.0403 | G8: =IF(Sheet1!J$18=TRUE,Sheet2!C8,x0) -> 0.03 | H8: =IF(Sheet1!J$18=TRUE,Sheet2!D8,y0) -> 1.0301
C9: 0.04 | D9: 1.0403 | E9: 1.0403 | F9: 1.050601 | G9: =IF(Sheet1!J$18=TRUE,Sheet2!C9,x0) -> 0.04 | H9: =IF(Sheet1!J$18=TRUE,Sheet2!D9,y0) -> 1.0403
C10: 0.05 | D10: 1.050601 | E10: 1.050601 | F10: 1.061004 | G10: =IF(Sheet1!J$18=TRUE,Sheet2!C10,x0) -> 0.05 | H10: =IF(Sheet1!J$18=TRUE,Sheet2!D10,y0) -> 1.050601
C11: 0.06 | D11: 1.061004 | E11: 1.061004 | F11: 1.07151001 | G11: =IF(Sheet1!J$18=TRUE,Sheet2!C11,x0) -> 0.06 | H11: =IF(Sheet1!J$18=TRUE,Sheet2!D11,y0) -> 1.061004
C12: 0.07 | D12: 1.07151001 | E12: 1.07151001 | F12: 1.08212005 | G12: =IF(Sheet1!J$18=TRUE,Sheet2!C12,x0) -> 0.07 | H12: =IF(Sheet1!J$18=TRUE,Sheet2!D12,y0) -> 1.07151001
C13: 0.08 | D13: 1.08212005 | E13: 1.08212005 | F13: 1.09283515 | G13: =IF(Sheet1!J$18=TRUE,Sheet2!C13,x0) -> 0.08 | H13: =IF(Sheet1!J$18=TRUE,Sheet2!D13,y0) -> 1.08212005
C14: 0.09 | D14: 1.09283515 | E14: 1.09283515 | F14: 1.103656351 | G14: =IF(Sheet1!J$18=TRUE,Sheet2!C14,x0) -> 0.09 | H14: =IF(Sheet1!J$18=TRUE,Sheet2!D14,y0) -> 1.09283515
C15: 0.1 | D15: 1.103656351 | E15: 1.103656351 | F15: 1.114584702 | G15: =IF(Sheet1!J$18=TRUE,Sheet2!C15,x0) -> 0.1 | H15: =IF(Sheet1!J$18=TRUE,Sheet2!D15,y0) -> 1.103656351
C16: 0.11 | D16: 1.114584702 | E16: 1.114584702 | F16: 1.125621266 | G16: =IF(Sheet1!J$18=TRUE,Sheet2!C16,x0) -> 0.11 | H16: =IF(Sheet1!J$18=TRUE,Sheet2!D16,y0) -> 1.114584702
C17: 0.12 | D17: 1.125621266 | E17: 1.125621266 | F17: 1.136767113 | G17: =IF(Sheet1!J$18=TRUE,Sheet2!C17,x0) -> 0.12 | H17: =IF(Sheet1!J$18=TRUE,Sheet2!D17,y0) -> 1.125621266
C18: 0.13 | D18: 1.136767113 | E18: 1.136767113 | F18: 1.148023325 | G18: =IF(Sheet1!J$18=TRUE,Sheet2!C18,x0) -> 0.13 | H18: =IF(Sheet1!J$18=TRUE,Sheet2!D18,y0) -> 1.136767113
C19: 0.14 | D19: 1.148023325 | E19: 1.148023325 | F19: 1.159390996 | G19: =IF(Sheet1!J$18=TRUE,Sheet2!C19,x0) -> 0.14 | H19: =IF(Sheet1!J$18=TRUE,Sheet2!D19,y0) -> 1.148023325
C20: 0.15 | D20: 1.159390996 | E20: 1.159390996 | F20: 1.17087123 | G20: =IF(Sheet1!J$18=TRUE,Sheet2!C20,x0) -> 0.15 | H20: =IF(Sheet1!J$18=TRUE,Sheet2!D20,y0) -> 1.159390996
C21: 0.16 | D21: 1.17087123 | E21: 1.17087123 | F21: 1.18246514 | G21: =IF(Sheet1!J$18=TRUE,Sheet2!C21,x0) -> 0.16 | H21: =IF(Sheet1!J$18=TRUE,Sheet2!D21,y0) -> 1.17087123
C22: 0.17 | D22: 1.18246514 | E22: 1.18246514 | F22: 1.194173852 | G22: =IF(Sheet1!J$18=TRUE,Sheet2!C22,x0) -> 0.17 | H22: =IF(Sheet1!J$18=TRUE,Sheet2!D22,y0) -> 1.18246514
C23: 0.18 | D23: 1.194173852 | E23: 1.194173852 | F23: 1.205998503 | G23: =IF(Sheet1!J$18=TRUE,Sheet2!C23,x0) -> 0.18 | H23: =IF(Sheet1!J$18=TRUE,Sheet2!D23,y0) -> 1.194173852
C24: 0.19 | D24: 1.205998503 | E24: 1.205998503 | F24: 1.217940242 | G24: =IF(Sheet1!J$18=TRUE,Sheet2!C24,x0) -> 0.19 | H24: =IF(Sheet1!J$18=TRUE,Sheet2!D24,y0) -> 1.205998503
C25: 0.2 | D25: 1.217940242 | E25: 1.217940242 | F25: 1.230000227 | G25: =IF(Sheet1!J$18=TRUE,Sheet2!C25,x0) -> 0.2 | H25: =IF(Sheet1!J$18=TRUE,Sheet2!D25,y0) -> 1.217940242
C26: 0.21 | D26: 1.230000227 | E26: 1.230000227 | F26: 1.242179629 | G26: =IF(Sheet1!J$18=TRUE,Sheet2!C26,x0) -> 0.21 | H26: =IF(Sheet1!J$18=TRUE,Sheet2!D26,y0) -> 1.230000227
C27: 0.22 | D27: 1.242179629 | E27: 1.242179629 | F27: 1.254479632 | G27: =IF(Sheet1!J$18=TRUE,Sheet2!C27,x0) -> 0.22 | H27: =IF(Sheet1!J$18=TRUE,Sheet2!D27,y0) -> 1.242179629
C28: 0.23 | D28: 1.254479632 | E28: 1.254479632 | F28: 1.266901428 | G28: =IF(Sheet1!J$18=TRUE,Sheet2!C28,x0) -> 0.23 | H28: =IF(Sheet1!J$18=TRUE,Sheet2!D28,y0) -> 1.254479632
C29: 0.24 | D29: 1.266901428 | E29: 1.266901428 | F29: 1.279446224 | G29: =IF(Sheet1!J$18=TRUE,Sheet2!C29,x0) -> 0.24 | H29: =IF(Sheet1!J$18=TRUE,Sheet2!D29,y0) -> 1.266901428
C30: 0.25 | D30: 1.279446224 | E30: 1.279446224 | F30: 1.292115238 | G30: =IF(Sheet1!J$18=TRUE,Sheet2!C30,x0) -> 0.25 | H30: =IF(Sheet1!J$18=TRUE,Sheet2!D30,y0) -> 1.279446224
C31: 0.26 | D31: 1.292115238 | E31: 1.292115238 | F31: 1.304909701 | G31: =IF(Sheet1!J$18=TRUE,Sheet2!C31,x0) -> 0.26 | H31: =IF(Sheet1!J$18=TRUE,Sheet2!D31,y0) -> 1.292115238
C32: 0.27 | D32: 1.304909701 | E32: 1.304909701 | F32: 1.317830853 | G32: =IF(Sheet1!J$18=TRUE,Sheet2!C32,x0) -> 0.27 | H32: =IF(Sheet1!J$18=TRUE,Sheet2!D32,y0) -> 1.304909701
C33: 0.28 | D33: 1.317830853 | E33: 1.317830853 | F33: 1.33087995 | G33: =IF(Sheet1!J$18=TRUE,Sheet2!C33,x0) -> 0.28 | H33: =IF(Sheet1!J$18=TRUE,Sheet2!D33,y0) -> 1.317830853
C34: 0.29 | D34: 1.33087995 | E34: 1.33087995 | F34: 1.344058259 | G34: =IF(Sheet1!J$18=TRUE,Sheet2!C34,x0) -> 0.29 | H34: =IF(Sheet1!J$18=TRUE,Sheet2!D34,y0) -> 1.33087995
C35: 0.3 | D35: 1.344058259 | E35: 1.344058259 | F35: 1.357367058 | G35: =IF(Sheet1!J$18=TRUE,Sheet2!C35,x0) -> 0.3 | H35: =IF(Sheet1!J$18=TRUE,Sheet2!D35,y0) -> 1.344058259
C36: 0.31 | D36: 1.357367058 | E36: 1.357367058 | F36: 1.370807641 | G36: =IF(Sheet1!J$18=TRUE,Sheet2!C36,x0) -> 0.31 | H36: =IF(Sheet1!J$18=TRUE,Sheet2!D36,y0) -> 1.357367058
C37: 0.32 | D37: 1.370807641 | E37: 1.370807641 | F37: 1.384381311 | G37: =IF(Sheet1!J$18=TRUE,Sheet2!C37,x0) -> 0.32 | H37: =IF(Sheet1!J$18=TRUE,Sheet2!D37,y0) -> 1.370807641
C38: =C37+dx -> 0.33 | D38: 1.384381311 | E38: 1.384381311 | F38: 1.398089388 | G38: =IF(Sheet1!J$18=TRUE,Sheet2!C38,x0) -> 0.33 | H38: =IF(Sheet1!J$18=TRUE,Sheet2!D38,y0) -> 1.384381311
C39: 0.34 | D39: 1.398089388 | E39: 1.398089388 | F39: 1.411933201 | G39: =IF(Sheet1!J$18=TRUE,Sheet2!C39,x0) -> 0.34 | H39: =IF(Sheet1!J$18=TRUE,Sheet2!D39,y0) -> 1.398089388
C40: 0.35 | D40: 1.411933201 | E40: 1.411933201 | F40: 1.425914095 | G40: =IF(Sheet1!J$18=TRUE,Sheet2!C40,x0) -> 0.35 | H40: =IF(Sheet1!J$18=TRUE,Sheet2!D40,y0) -> 1.411933201
C41: 0.36 | D41: 1.425914095 | E41: 1.425914095 | F41: 1.440033427 | G41: =IF(Sheet1!J$18=TRUE,Sheet2!C41,x0) -> 0.36 | H41: =IF(Sheet1!J$18=TRUE,Sheet2!D41,y0) -> 1.425914095
C42: 0.37 | D42: 1.440033427 | E42: 1.440033427 | F42: 1.454292568 | G42: =IF(Sheet1!J$18=TRUE,Sheet2!C42,x0) -> 0.37 | H42: =IF(Sheet1!J$18=TRUE,Sheet2!D42,y0) -> 1.440033427
C43: 0.38 | D43: 1.454292568 | E43: 1.454292568 | F43: 1.468692902 | G43: =IF(Sheet1!J$18=TRUE,Sheet2!C43,x0) -> 0.38 | H43: =IF(Sheet1!J$18=TRUE,Sheet2!D43,y0) -> 1.454292568
C44: 0.39 | D44: 1.468692902 | E44: 1.468692902 | F44: 1.483235828 | G44: =IF(Sheet1!J$18=TRUE,Sheet2!C44,x0) -> 0.39 | H44: =IF(Sheet1!J$18=TRUE,Sheet2!D44,y0) -> 1.468692902
C45: 0.4 | D45: 1.483235828 | E45: 1.483235828 | F45: 1.497922757 | G45: =IF(Sheet1!J$18=TRUE,Sheet2!C45,x0) -> 0.4 | H45: =IF(Sheet1!J$18=TRUE,Sheet2!D45,y0) -> 1.483235828
C46: 0.41 | D46: 1.497922757 | E46: 1.497922757 | F46: 1.512755115 | G46: =IF(Sheet1!J$18=TRUE,Sheet2!C46,x0) -> 0.41 | H46: =IF(Sheet1!J$18=TRUE,Sheet2!D46,y0) -> 1.497922757
C47: 0.42 | D47: 1.512755115 | E47: 1.512755115 | F47: 1.527734342 | G47: =IF(Sheet1!J$18=TRUE,Sheet2!C47,x0) -> 0.42 | H47: =IF(Sheet1!J$18=TRUE,Sheet2!D47,y0) -> 1.512755115
C48: 0.43 | D48: 1.527734342 | E48: 1.527734342 | F48: 1.542861894 | G48: =IF(Sheet1!J$18=TRUE,Sheet2!C48,x0) -> 0.43 | H48: =IF(Sheet1!J$18=TRUE,Sheet2!D48,y0) -> 1.527734342
C49: 0.44 | D49: 1.542861894 | E49: 1.542861894 | F49: 1.558139237 | G49: =IF(Sheet1!J$18=TRUE,Sheet2!C49,x0) -> 0.44 | H49: =IF(Sheet1!J$18=TRUE,Sheet2!D49,y0) -> 1.542861894
C50: 0.45 | D50: 1.558139237 | E50: 1.558139237 | F50: 1.573567856 | G50: =IF(Sheet1!J$18=TRUE,Sheet2!C50,x0) -> 0.45 | H50: =IF(Sheet1!J$18=TRUE,Sheet2!D50,y0) -> 1.558139237
C51: 0.46 | D51: 1.573567856 | E51: 1.573567856 | F51: 1.589149248 | G51: =IF(Sheet1!J$18=TRUE,Sheet2!C51,x0) -> 0.46 | H51: =IF(Sheet1!J$18=TRUE,Sheet2!D51,y0) -> 1.573567856
C52: 0.47 | D52: 1.589149248 | E52: 1.589149248 | F52: 1.604884927 | G52: =IF(Sheet1!J$18=TRUE,Sheet2!C52,x0) -> 0.47 | H52: =IF(Sheet1!J$18=TRUE,Sheet2!D52,y0) -> 1.589149248
C53: 0.48 | D53: 1.604884927 | E53: 1.604884927 | F53: 1.620776419 | G53: =IF(Sheet1!J$18=TRUE,Sheet2!C53,x0) -> 0.48 | H53: =IF(Sheet1!J$18=TRUE,Sheet2!D53,y0) -> 1.604884927
C54: 0.49 | D54: 1.620776419 | E54: 1.620776419 | F54: 1.636825269 | G54: =IF(Sheet1!J$18=TRUE,Sheet2!C54,x0) -> 0.49 | H54: =IF(Sheet1!J$18=TRUE,Sheet2!D54,y0) -> 1.620776419
C55: 0.5 | D55: 1.636825269 | E55: 1.636825269 | F55: 1.653033033 | G55: =IF(Sheet1!J$18=TRUE,Sheet2!C55,x0) -> 0.5 | H55: =IF(Sheet1!J$18=TRUE,Sheet2!D55,y0) -> 1.636825269
C56: 0.51 | D56: 1.653033033 | E56: 1.653033033 | F56: 1.669401286 | G56: =IF(Sheet1!J$18=TRUE,Sheet2!C56,x0) -> 0.51 | H56: =IF(Sheet1!J$18=TRUE,Sheet2!D56,y0) -> 1.653033033
C57: 0.52 | D57: 1.669401286 | E57: 1.669401286 | F57: 1.685931616 | G57: =IF(Sheet1!J$18=TRUE,Sheet2!C57,x0) -> 0.52 | H57: =IF(Sheet1!J$18=TRUE,Sheet2!D57,y0) -> 1.669401286
C58: 0.53 | D58: 1.685931616 | E58: 1.685931616 | F58: 1.702625629 | G58: =IF(Sheet1!J$18=TRUE,Sheet2!C58,x0) -> 0.53 | H58: =IF(Sheet1!J$18=TRUE,Sheet2!D58,y0) -> 1.685931616
C59: 0.54 | D59: 1.702625629 | E59: 1.702625629 | F59: 1.719484945 | G59: =IF(Sheet1!J$18=TRUE,Sheet2!C59,x0) -> 0.54 | H59: =IF(Sheet1!J$18=TRUE,Sheet2!D59,y0) -> 1.702625629
C60: 0.55 | D60: 1.719484945 | E60: 1.719484945 | F60: 1.736511201 | G60: =IF(Sheet1!J$18=TRUE,Sheet2!C60,x0) -> 0.55 | H60: =IF(Sheet1!J$18=TRUE,Sheet2!D60,y0) -> 1.719484945
C61: 0.56 | D61: 1.736511201 | E61: 1.736511201 | F61: 1.753706051 | G61: =IF(Sheet1!J$18=TRUE,Sheet2!C61,x0) -> 0.56 | H61: =IF(Sheet1!J$18=TRUE,Sheet2!D61,y0) -> 1.736511201
C62: 0.57 | D62: 1.753706051 | E62: 1.753706051 | F62: 1.771071163 | G62: =IF(Sheet1!J$18=TRUE,Sheet2!C62,x0) -> 0.57 | H62: =IF(Sheet1!J$18=TRUE,Sheet2!D62,y0) -> 1.753706051
C63: 0.58 | D63: 1.771071163 | E63: 1.771071163 | F63: 1.788608223 | G63: =IF(Sheet1!J$18=TRUE,Sheet2!C63,x0) -> 0.58 | H63: =IF(Sheet1!J$18=TRUE,Sheet2!D63,y0) -> 1.771071163
C64: 0.59 | D64: 1.788608223 | E64: 1.788608223 | F64: 1.806318935 | G64: =IF(Sheet1!J$18=TRUE,Sheet2!C64,x0) -> 0.59 | H64: =IF(Sheet1!J$18=TRUE,Sheet2!D64,y0) -> 1.788608223
C65: 0.6 | D65: 1.806318935 | E65: 1.806318935 | F65: 1.824205017 | G65: =IF(Sheet1!J$18=TRUE,Sheet2!C65,x0) -> 0.6 | H65: =IF(Sheet1!J$18=TRUE,Sheet2!D65,y0) -> 1.806318935
C66: 0.61 | D66: 1.824205017 | E66: 1.824205017 | F66: 1.842268206 | G66: =IF(Sheet1!J$18=TRUE,Sheet2!C66,x0) -> 0.61 | H66: =IF(Sheet1!J$18=TRUE,Sheet2!D66,y0) -> 1.824205017
C67: 0.62 | D67: 1.842268206 | E67: =y -> 1.842268206 | F67: 1.860510256 | G67: =IF(Sheet1!J$18=TRUE,Sheet2!C67,x0) -> 0.62 | H67: =IF(Sheet1!J$18=TRUE,Sheet2!D67,y0) -> 1.842268206
C68: 0.63 | D68: 1.860510256 | E68: 1.860510256 | F68: 1.878932939 | G68: =IF(Sheet1!J$18=TRUE,Sheet2!C68,x0) -> 0.63 | H68: =IF(Sheet1!J$18=TRUE,Sheet2!D68,y0) -> 1.860510256
C69: 0.64 | D69: 1.878932939 | E69: 1.878932939 | F69: =D69+E68*dx -> 1.897538041 | G69: =IF(Sheet1!J$18=TRUE,Sheet2!C69,x0) -> 0.64 | H69: =IF(Sheet1!J$18=TRUE,Sheet2!D69,y0) -> 1.878932939
C70: =C69+dx -> 0.65 | D70: 1.897538041 | E70: 1.897538041 | F70: 1.91632737 | G70: =IF(Sheet1!J$18=TRUE,Sheet2!C70,x0) -> 0.65 | H70: =IF(Sheet1!J$18=TRUE,Sheet2!D70,y0) -> 1.897538041
C71: 0.66 | D71: =F70 -> 1.91632737 | E71: 1.91632737 | F71: 1.935302751 | G71: =IF(Sheet1!J$18=TRUE,Sheet2!C71,x0) -> 0.66 | H71: =IF(Sheet1!J$18=TRUE,Sheet2!D71,y0) -> 1.91632737
C72: 0.67 | D72: 1.935302751 | E72: 1.935302751 | F72: 1.954466025 | G72: =IF(Sheet1!J$18=TRUE,Sheet2!C72,x0) -> 0.67 | H72: =IF(Sheet1!J$18=TRUE,Sheet2!D72,y0) -> 1.935302751
C73: 0.68 | D73: 1.954466025 | E73: 1.954466025 | F73: 1.973819052 | G73: =IF(Sheet1!J$18=TRUE,Sheet2!C73,x0) -> 0.68 | H73: =IF(Sheet1!J$18=TRUE,Sheet2!D73,y0) -> 1.954466025
C74: 0.69 | D74: 1.973819052 | E74: 1.973819052 | F74: 1.993363712 | G74: =IF(Sheet1!J$18=TRUE,Sheet2!C74,x0) -> 0.69 | H74: =IF(Sheet1!J$18=TRUE,Sheet2!D74,y0) -> 1.973819052
C75: 0.7 | D75: 1.993363712 | E75: 1.993363712 | F75: 2.013101903 | G75: =IF(Sheet1!J$18=TRUE,Sheet2!C75,x0) -> 0.7 | H75: =IF(Sheet1!J$18=TRUE,Sheet2!D75,y0) -> 1.993363712
C76: 0.71 | D76: 2.013101903 | E76: 2.013101903 | F76: 2.03303554 | G76: =IF(Sheet1!J$18=TRUE,Sheet2!C76,x0) -> 0.71 | H76: =IF(Sheet1!J$18=TRUE,Sheet2!D76,y0) -> 2.013101903
C77: 0.72 | D77: 2.03303554 | E77: 2.03303554 | F77: 2.053166559 | G77: =IF(Sheet1!J$18=TRUE,Sheet2!C77,x0) -> 0.72 | H77: =IF(Sheet1!J$18=TRUE,Sheet2!D77,y0) -> 2.03303554
C78: 0.73 | D78: 2.053166559 | E78: 2.053166559 | F78: 2.073496914 | G78: =IF(Sheet1!J$18=TRUE,Sheet2!C78,x0) -> 0.73 | H78: =IF(Sheet1!J$18=TRUE,Sheet2!D78,y0) -> 2.053166559
C79: 0.74 | D79: 2.073496914 | E79: 2.073496914 | F79: 2.09402858 | G79: =IF(Sheet1!J$18=TRUE,Sheet2!C79,x0) -> 0.74 | H79: =IF(Sheet1!J$18=TRUE,Sheet2!D79,y0) -> 2.073496914
C80: 0.75 | D80: 2.09402858 | E80: 2.09402858 | F80: 2.114763549 | G80: =IF(Sheet1!J$18=TRUE,Sheet2!C80,x0) -> 0.75 | H80: =IF(Sheet1!J$18=TRUE,Sheet2!D80,y0) -> 2.09402858
C81: 0.76 | D81: 2.114763549 | E81: 2.114763549 | F81: 2.135703835 | G81: =IF(Sheet1!J$18=TRUE,Sheet2!C81,x0) -> 0.76 | H81: =IF(Sheet1!J$18=TRUE,Sheet2!D81,y0) -> 2.114763549
C82: 0.77 | D82: 2.135703835 | E82: 2.135703835 | F82: 2.15685147 | G82: =IF(Sheet1!J$18=TRUE,Sheet2!C82,x0) -> 0.77 | H82: =IF(Sheet1!J$18=TRUE,Sheet2!D82,y0) -> 2.135703835
C83: 0.78 | D83: 2.15685147 | E83: 2.15685147 | F83: 2.178208509 | G83: =IF(Sheet1!J$18=TRUE,Sheet2!C83,x0) -> 0.78 | H83: =IF(Sheet1!J$18=TRUE,Sheet2!D83,y0) -> 2.15685147
C84: 0.79 | D84: 2.178208509 | E84: 2.178208509 | F84: 2.199777024 | G84: =IF(Sheet1!J$18=TRUE,Sheet2!C84,x0) -> 0.79 | H84: =IF(Sheet1!J$18=TRUE,Sheet2!D84,y0) -> 2.178208509
C85: 0.8 | D85: 2.199777024 | E85: 2.199777024 | F85: 2.221559109 | G85: =IF(Sheet1!J$18=TRUE,Sheet2!C85,x0) -> 0.8 | H85: =IF(Sheet1!J$18=TRUE,Sheet2!D85,y0) -> 2.199777024
C86: 0.81 | D86: 2.221559109 | E86: 2.221559109 | F86: 2.243556879 | G86: =IF(Sheet1!J$18=TRUE,Sheet2!C86,x0) -> 0.81 | H86: =IF(Sheet1!J$18=TRUE,Sheet2!D86,y0) -> 2.221559109
C87: 0.82 | D87: 2.243556879 | E87: 2.243556879 | F87: 2.26577247 | G87: =IF(Sheet1!J$18=TRUE,Sheet2!C87,x0) -> 0.82 | H87: =IF(Sheet1!J$18=TRUE,Sheet2!D87,y0) -> 2.243556879
C88: 0.83 | D88: 2.26577247 | E88: 2.26577247 | F88: 2.288208039 | G88: =IF(Sheet1!J$18=TRUE,Sheet2!C88,x0) -> 0.83 | H88: =IF(Sheet1!J$18=TRUE,Sheet2!D88,y0) -> 2.26577247
C89: 0.84 | D89: 2.288208039 | E89: 2.288208039 | F89: 2.310865763 | G89: =IF(Sheet1!J$18=TRUE,Sheet2!C89,x0) -> 0.84 | H89: =IF(Sheet1!J$18=TRUE,Sheet2!D89,y0) -> 2.288208039
C90: 0.85 | D90: 2.310865763 | E90: 2.310865763 | F90: 2.333747844 | G90: =IF(Sheet1!J$18=TRUE,Sheet2!C90,x0) -> 0.85 | H90: =IF(Sheet1!J$18=TRUE,Sheet2!D90,y0) -> 2.310865763
C91: 0.86 | D91: 2.333747844 | E91: 2.333747844 | F91: 2.356856501 | G91: =IF(Sheet1!J$18=TRUE,Sheet2!C91,x0) -> 0.86 | H91: =IF(Sheet1!J$18=TRUE,Sheet2!D91,y0) -> 2.333747844
C92: 0.87 | D92: 2.356856501 | E92: 2.356856501 | F92: 2.38019398 | G92: =IF(Sheet1!J$18=TRUE,Sheet2!C92,x0) -> 0.87 | H92: =IF(Sheet1!J$18=TRUE,Sheet2!D92,y0) -> 2.356856501
C93: 0.88 | D93: 2.38019398 | E93: 2.38019398 | F93: 2.403762545 | G93: =IF(Sheet1!J$18=TRUE,Sheet2!C93,x0) -> 0.88 | H93: =IF(Sheet1!J$18=TRUE,Sheet2!D93,y0) -> 2.38019398
C94: 0.89 | D94: 2.403762545 | E94: 2.403762545 | F94: 2.427564485 | G94: =IF(Sheet1!J$18=TRUE,Sheet2!C94,x0) -> 0.89 | H94: =IF(Sheet1!J$18=TRUE,Sheet2!D94,y0) -> 2.403762545
C95: 0.9 | D95: 2.427564485 | E95: 2.427564485 | F95: 2.45160211 | G95: =IF(Sheet1!J$18=TRUE,Sheet2!C95,x0) -> 0.9 | H95: =IF(Sheet1!J$18=TRUE,Sheet2!D95,y0) -> 2.427564485
C96: 0.91 | D96: 2.45160211 | E96: 2.45160211 | F96: 2.475877755 | G96: =IF(Sheet1!J$18=TRUE,Sheet2!C96,x0) -> 0.91 | H96: =IF(Sheet1!J$18=TRUE,Sheet2!D96,y0) -> 2.45160211
C97: 0.92 | D97: 2.475877755 | E97: 2.475877755 | F97: 2.500393776 | G97: =IF(Sheet1!J$18=TRUE,Sheet2!C97,x0) -> 0.92 | H97: =IF(Sheet1!J$18=TRUE,Sheet2!D97,y0) -> 2.475877755
C98: 0.93 | D98: 2.500393776 | E98: 2.500393776 | F98: 2.525152554 | G98: =IF(Sheet1!J$18=TRUE,Sheet2!C98,x0) -> 0.93 | H98: =IF(Sheet1!J$18=TRUE,Sheet2!D98,y0) -> 2.500393776
C99: 0.94 | D99: 2.525152554 | E99: 2.525152554 | F99: 2.550156491 | G99: =IF(Sheet1!J$18=TRUE,Sheet2!C99,x0) -> 0.94 | H99: =IF(Sheet1!J$18=TRUE,Sheet2!D99,y0) -> 2.525152554
C100: 0.95 | D100: 2.550156491 | E100: 2.550156491 | F100: 2.575408017 | G100: =IF(Sheet1!J$18=TRUE,Sheet2!C100,x0) -> 0.95 | H100: =IF(Sheet1!J$18=TRUE,Sheet2!D100,y0) -> 2.550156491
C101: 0.96 | D101: 2.575408017 | E101: 2.575408017 | F101: 2.600909582 | G101: =IF(Sheet1!J$18=TRUE,Sheet2!C101,x0) -> 0.96 | H101: =IF(Sheet1!J$18=TRUE,Sheet2!D101,y0) -> 2.575408017
C102: =C101+dx -> 0.97 | D102: 2.600909582 | E102: 2.600909582 | F102: 2.626663662 | G102: =IF(Sheet1!J$18=TRUE,Sheet2!C102,x0) -> 0.97 | H102: =IF(Sheet1!J$18=TRUE,Sheet2!D102,y0) -> 2.600909582
C103: 0.98 | D103: 2.626663662 | E103: 2.626663662 | F103: 2.652672758 | G103: =IF(Sheet1!J$18=TRUE,Sheet2!C103,x0) -> 0.98 | H103: =IF(Sheet1!J$18=TRUE,Sheet2!D103,y0) -> 2.626663662
C104: 0.99 | D104: 2.652672758 | E104: 2.652672758 | F104: 2.678939394 | G104: =IF(Sheet1!J$18=TRUE,Sheet2!C104,x0) -> 0.99 | H104: =IF(Sheet1!J$18=TRUE,Sheet2!D104,y0) -> 2.652672758
C105: 1 | D105: 2.678939394 | E105: 2.678939394 | F105: 2.705466122 | G105: =IF(Sheet1!J$18=TRUE,Sheet2!C105,x0) -> 1 | H105: =IF(Sheet1!J$18=TRUE,Sheet2!D105,y0) -> 2.678939394
C106: 1.01 | D106: 2.705466122 | E106: 2.705466122 | F106: 2.732255516 | G106: =IF(Sheet1!J$18=TRUE,Sheet2!C106,x0) -> 1.01 | H106: =IF(Sheet1!J$18=TRUE,Sheet2!D106,y0) -> 2.705466122
C107: 1.02 | D107: 2.732255516 | E107: 2.732255516 | F107: 2.759310177 | G107: =IF(Sheet1!J$18=TRUE,Sheet2!C107,x0) -> 1.02 | H107: =IF(Sheet1!J$18=TRUE,Sheet2!D107,y0) -> 2.732255516
C108: 1.03 | D108: 2.759310177 | E108: 2.759310177 | F108: 2.786632732 | G108: =IF(Sheet1!J$18=TRUE,Sheet2!C108,x0) -> 1.03 | H108: =IF(Sheet1!J$18=TRUE,Sheet2!D108,y0) -> 2.759310177
C109: 1.04 | D109: 2.786632732 | E109: 2.786632732 | F109: 2.814225834 | G109: =IF(Sheet1!J$18=TRUE,Sheet2!C109,x0) -> 1.04 | H109: =IF(Sheet1!J$18=TRUE,Sheet2!D109,y0) -> 2.786632732
C110: 1.05 | D110: 2.814225834 | E110: 2.814225834 | F110: 2.842092161 | G110: =IF(Sheet1!J$18=TRUE,Sheet2!C110,x0) -> 1.05 | H110: =IF(Sheet1!J$18=TRUE,Sheet2!D110,y0) -> 2.814225834
C111: 1.06 | D111: 2.842092161 | E111: 2.842092161 | F111: 2.87023442 | G111: =IF(Sheet1!J$18=TRUE,Sheet2!C111,x0) -> 1.06 | H111: =IF(Sheet1!J$18=TRUE,Sheet2!D111,y0) -> 2.842092161
C112: 1.07 | D112: 2.87023442 | E112: 2.87023442 | F112: 2.898655341 | G112: =IF(Sheet1!J$18=TRUE,Sheet2!C112,x0) -> 1.07 | H112: =IF(Sheet1!J$18=TRUE,Sheet2!D112,y0) -> 2.87023442
C113: 1.08 | D113: 2.898655341 | E113: 2.898655341 | F113: 2.927357686 | G113: =IF(Sheet1!J$18=TRUE,Sheet2!C113,x0) -> 1.08 | H113: =IF(Sheet1!J$18=TRUE,Sheet2!D113,y0) -> 2.898655341
C114: 1.09 | D114: 2.927357686 | E114: 2.927357686 | F114: 2.956344239 | G114: =IF(Sheet1!J$18=TRUE,Sheet2!C114,x0) -> 1.09 | H114: =IF(Sheet1!J$18=TRUE,Sheet2!D114,y0) -> 2.927357686
C115: 1.1 | D115: 2.956344239 | E115: 2.956344239 | F115: 2.985617816 | G115: =IF(Sheet1!J$18=TRUE,Sheet2!C115,x0) -> 1.1 | H115: =IF(Sheet1!J$18=TRUE,Sheet2!D115,y0) -> 2.956344239
C116: 1.11 | D116: 2.985617816 | E116: 2.985617816 | F116: 3.015181258 | G116: =IF(Sheet1!J$18=TRUE,Sheet2!C116,x0) -> 1.11 | H116: =IF(Sheet1!J$18=TRUE,Sheet2!D116,y0) -> 2.985617816
C117: 1.12 | D117: 3.015181258 | E117: 3.015181258 | F117: 3.045037436 | G117: =IF(Sheet1!J$18=TRUE,Sheet2!C117,x0) -> 1.12 | H117: =IF(Sheet1!J$18=TRUE,Sheet2!D117,y0) -> 3.015181258
C118: 1.13 | D118: 3.045037436 | E118: 3.045037436 | F118: 3.075189249 | G118: =IF(Sheet1!J$18=TRUE,Sheet2!C118,x0) -> 1.13 | H118: =IF(Sheet1!J$18=TRUE,Sheet2!D118,y0) -> 3.045037436
C119: 1.14 | D119: 3.075189249 | E119: 3.075189249 | F119: 3.105639623 | G119: =IF(Sheet1!J$18=TRUE,Sheet2!C119,x0) -> 1.14 | H119: =IF(Sheet1!J$18=TRUE,Sheet2!D119,y0) -> 3.075189249
C120: 1.15 | D120: 3.105639623 | E120: 3.105639623 | F120: 3.136391516 | G120: =IF(Sheet1!J$18=TRUE,Sheet2!C120,x0) -> 1.15 | H120: =IF(Sheet1!J$18=TRUE,Sheet2!D120,y0) -> 3.105639623
C121: 1.16 | D121: 3.136391516 | E121: 3.136391516 | F121: 3.167447912 | G121: =IF(Sheet1!J$18=TRUE,Sheet2!C121,x0) -> 1.16 | H121: =IF(Sheet1!J$18=TRUE,Sheet2!D121,y0) -> 3.136391516
C122: 1.17 | D122: 3.167447912 | E122: 3.167447912 | F122: 3.198811827 | G122: =IF(Sheet1!J$18=TRUE,Sheet2!C122,x0) -> 1.17 | H122: =IF(Sheet1!J$18=TRUE,Sheet2!D122,y0) -> 3.167447912
C123: 1.18 | D123: 3.198811827 | E123: 3.198811827 | F123: 3.230486306 | G123: =IF(Sheet1!J$18=TRUE,Sheet2!C123,x0) -> 1.18 | H123: =IF(Sheet1!J$18=TRUE,Sheet2!D123,y0) -> 3.198811827
C124: 1.19 | D124: 3.230486306 | E124: 3.230486306 | F124: 3.262474425 | G124: =IF(Sheet1!J$18=TRUE,Sheet2!C124,x0) -> 1.19 | H124: =IF(Sheet1!J$18=TRUE,Sheet2!D124,y0) -> 3.230486306
C125: 1.2 | D125: 3.262474425 | E125: 3.262474425 | F125: 3.294779288 | G125: =IF(Sheet1!J$18=TRUE,Sheet2!C125,x0) -> 1.2 | H125: =IF(Sheet1!J$18=TRUE,Sheet2!D125,y0) -> 3.262474425
C126: 1.21 | D126: 3.294779288 | E126: 3.294779288 | F126: 3.327404032 | G126: =IF(Sheet1!J$18=TRUE,Sheet2!C126,x0) -> 1.21 | H126: =IF(Sheet1!J$18=TRUE,Sheet2!D126,y0) -> 3.294779288
C127: 1.22 | D127: 3.327404032 | E127: 3.327404032 | F127: 3.360351825 | G127: =IF(Sheet1!J$18=TRUE,Sheet2!C127,x0) -> 1.22 | H127: =IF(Sheet1!J$18=TRUE,Sheet2!D127,y0) -> 3.327404032
C128: 1.23 | D128: 3.360351825 | E128: 3.360351825 | F128: 3.393625865 | G128: =IF(Sheet1!J$18=TRUE,Sheet2!C128,x0) -> 1.23 | H128: =IF(Sheet1!J$18=TRUE,Sheet2!D128,y0) -> 3.360351825
C129: 1.24 | D129: 3.393625865 | E129: 3.393625865 | F129: 3.427229383 | G129: =IF(Sheet1!J$18=TRUE,Sheet2!C129,x0) -> 1.24 | H129: =IF(Sheet1!J$18=TRUE,Sheet2!D129,y0) -> 3.393625865
C130: 1.25 | D130: 3.427229383 | E130: 3.427229383 | F130: 3.461165642 | G130: =IF(Sheet1!J$18=TRUE,Sheet2!C130,x0) -> 1.25 | H130: =IF(Sheet1!J$18=TRUE,Sheet2!D130,y0) -> 3.427229383
C131: 1.26 | D131: 3.461165642 | E131: =y -> 3.461165642 | F131: 3.495437936 | G131: =IF(Sheet1!J$18=TRUE,Sheet2!C131,x0) -> 1.26 | H131: =IF(Sheet1!J$18=TRUE,Sheet2!D131,y0) -> 3.461165642
C132: 1.27 | D132: 3.495437936 | E132: 3.495437936 | F132: 3.530049592 | G132: =IF(Sheet1!J$18=TRUE,Sheet2!C132,x0) -> 1.27 | H132: =IF(Sheet1!J$18=TRUE,Sheet2!D132,y0) -> 3.495437936
C133: 1.28 | D133: 3.530049592 | E133: 3.530049592 | F133: =D133+E132*dx -> 3.565003972 | G133: =IF(Sheet1!J$18=TRUE,Sheet2!C133,x0) -> 1.28 | H133: =IF(Sheet1!J$18=TRUE,Sheet2!D133,y0) -> 3.530049592
C134: =C133+dx -> 1.29 | D134: 3.565003972 | E134: 3.565003972 | F134: 3.600304468 | G134: =IF(Sheet1!J$18=TRUE,Sheet2!C134,x0) -> 1.29 | H134: =IF(Sheet1!J$18=TRUE,Sheet2!D134,y0) -> 3.565003972
C135: 1.3 | D135: =F134 -> 3.600304468 | E135: 3.600304468 | F135: 3.635954507 | G135: =IF(Sheet1!J$18=TRUE,Sheet2!C135,x0) -> 1.3 | H135: =IF(Sheet1!J$18=TRUE,Sheet2!D135,y0) -> 3.600304468
C136: 1.31 | D136: 3.635954507 | E136: 3.635954507 | F136: 3.671957552 | G136: =IF(Sheet1!J$18=TRUE,Sheet2!C136,x0) -> 1.31 | H136: =IF(Sheet1!J$18=TRUE,Sheet2!D136,y0) -> 3.635954507
C137: 1.32 | D137: 3.671957552 | E137: 3.671957552 | F137: 3.708317097 | G137: =IF(Sheet1!J$18=TRUE,Sheet2!C137,x0) -> 1.32 | H137: =IF(Sheet1!J$18=TRUE,Sheet2!D137,y0) -> 3.671957552
C138: 1.33 | D138: 3.708317097 | E138: 3.708317097 | F138: 3.745036673 | G138: =IF(Sheet1!J$18=TRUE,Sheet2!C138,x0) -> 1.33 | H138: =IF(Sheet1!J$18=TRUE,Sheet2!D138,y0) -> 3.708317097
C139: 1.34 | D139: 3.745036673 | E139: 3.745036673 | F139: 3.782119844 | G139: =IF(Sheet1!J$18=TRUE,Sheet2!C139,x0) -> 1.34 | H139: =IF(Sheet1!J$18=TRUE,Sheet2!D139,y0) -> 3.745036673
C140: 1.35 | D140: 3.782119844 | E140: 3.782119844 | F140: 3.81957021 | G140: =IF(Sheet1!J$18=TRUE,Sheet2!C140,x0) -> 1.35 | H140: =IF(Sheet1!J$18=TRUE,Sheet2!D140,y0) -> 3.782119844
C141: 1.36 | D141: 3.81957021 | E141: 3.81957021 | F141: 3.857391409 | G141: =IF(Sheet1!J$18=TRUE,Sheet2!C141,x0) -> 1.36 | H141: =IF(Sheet1!J$18=TRUE,Sheet2!D141,y0) -> 3.81957021
C142: 1.37 | D142: 3.857391409 | E142: 3.857391409 | F142: 3.895587111 | G142: =IF(Sheet1!J$18=TRUE,Sheet2!C142,x0) -> 1.37 | H142: =IF(Sheet1!J$18=TRUE,Sheet2!D142,y0) -> 3.857391409
C143: 1.38 | D143: 3.895587111 | E143: 3.895587111 | F143: 3.934161025 | G143: =IF(Sheet1!J$18=TRUE,Sheet2!C143,x0) -> 1.38 | H143: =IF(Sheet1!J$18=TRUE,Sheet2!D143,y0) -> 3.895587111
C144: 1.39 | D144: 3.934161025 | E144: 3.934161025 | F144: 3.973116896 | G144: =IF(Sheet1!J$18=TRUE,Sheet2!C144,x0) -> 1.39 | H144: =IF(Sheet1!J$18=TRUE,Sheet2!D144,y0) -> 3.934161025
C145: 1.4 | D145: 3.973116896 | E145: 3.973116896 | F145: 4.012458506 | G145: =IF(Sheet1!J$18=TRUE,Sheet2!C145,x0) -> 1.4 | H145: =IF(Sheet1!J$18=TRUE,Sheet2!D145,y0) -> 3.973116896
C146: 1.41 | D146: 4.012458506 | E146: 4.012458506 | F146: 4.052189675 | G146: =IF(Sheet1!J$18=TRUE,Sheet2!C146,x0) -> 1.41 | H146: =IF(Sheet1!J$18=TRUE,Sheet2!D146,y0) -> 4.012458506
C147: 1.42 | D147: 4.052189675 | E147: 4.052189675 | F147: 4.09231426 | G147: =IF(Sheet1!J$18=TRUE,Sheet2!C147,x0) -> 1.42 | H147: =IF(Sheet1!J$18=TRUE,Sheet2!D147,y0) -> 4.052189675
C148: 1.43 | D148: 4.09231426 | E148: 4.09231426 | F148: 4.132836157 | G148: =IF(Sheet1!J$18=TRUE,Sheet2!C148,x0) -> 1.43 | H148: =IF(Sheet1!J$18=TRUE,Sheet2!D148,y0) -> 4.09231426
C149: 1.44 | D149: 4.132836157 | E149: 4.132836157 | F149: 4.1737593 | G149: =IF(Sheet1!J$18=TRUE,Sheet2!C149,x0) -> 1.44 | H149: =IF(Sheet1!J$18=TRUE,Sheet2!D149,y0) -> 4.132836157
C150: 1.45 | D150: 4.1737593 | E150: 4.1737593 | F150: 4.215087661 | G150: =IF(Sheet1!J$18=TRUE,Sheet2!C150,x0) -> 1.45 | H150: =IF(Sheet1!J$18=TRUE,Sheet2!D150,y0) -> 4.1737593
C151: 1.46 | D151: 4.215087661 | E151: 4.215087661 | F151: 4.256825254 | G151: =IF(Sheet1!J$18=TRUE,Sheet2!C151,x0) -> 1.46 | H151: =IF(Sheet1!J$18=TRUE,Sheet2!D151,y0) -> 4.215087661
C152: 1.47 | D152: 4.256825254 | E152: 4.256825254 | F152: 4.298976131 | G152: =IF(Sheet1!J$18=TRUE,Sheet2!C152,x0) -> 1.47 | H152: =IF(Sheet1!J$18=TRUE,Sheet2!D152,y0) -> 4.256825254
C153: 1.48 | D153: 4.298976131 | E153: 4.298976131 | F153: 4.341544383 | G153: =IF(Sheet1!J$18=TRUE,Sheet2!C153,x0) -> 1.48 | H153: =IF(Sheet1!J$18=TRUE,Sheet2!D153,y0) -> 4.298976131
C154: 1.49 | D154: 4.341544383 | E154: 4.341544383 | F154: 4.384534145 | G154: =IF(Sheet1!J$18=TRUE,Sheet2!C154,x0) -> 1.49 | H154: =IF(Sheet1!J$18=TRUE,Sheet2!D154,y0) -> 4.341544383
C155: 1.5 | D155: 4.384534145 | E155: 4.384534145 | F155: 4.427949588 | G155: =IF(Sheet1!J$18=TRUE,Sheet2!C155,x0) -> 1.5 | H155: =IF(Sheet1!J$18=TRUE,Sheet2!D155,y0) -> 4.384534145
C156: 1.51 | D156: 4.427949588 | E156: 4.427949588 | F156: 4.47179493 | G156: =IF(Sheet1!J$18=TRUE,Sheet2!C156,x0) -> 1.51 | H156: =IF(Sheet1!J$18=TRUE,Sheet2!D156,y0) -> 4.427949588
C157: 1.52 | D157: 4.47179493 | E157: 4.47179493 | F157: 4.516074426 | G157: =IF(Sheet1!J$18=TRUE,Sheet2!C157,x0) -> 1.52 | H157: =IF(Sheet1!J$18=TRUE,Sheet2!D157,y0) -> 4.47179493
C158: 1.53 | D158: 4.516074426 | E158: 4.516074426 | F158: 4.560792375 | G158: =IF(Sheet1!J$18=TRUE,Sheet2!C158,x0) -> 1.53 | H158: =IF(Sheet1!J$18=TRUE,Sheet2!D158,y0) -> 4.516074426
C159: 1.54 | D159: 4.560792375 | E159: 4.560792375 | F159: 4.605953119 | G159: =IF(Sheet1!J$18=TRUE,Sheet2!C159,x0) -> 1.54 | H159: =IF(Sheet1!J$18=TRUE,Sheet2!D159,y0) -> 4.560792375
C160: 1.55 | D160: 4.605953119 | E160: 4.605953119 | F160: 4.651561043 | G160: =IF(Sheet1!J$18=TRUE,Sheet2!C160,x0) -> 1.55 | H160: =IF(Sheet1!J$18=TRUE,Sheet2!D160,y0) -> 4.605953119
C161: 1.56 | D161: 4.651561043 | E161: 4.651561043 | F161: 4.697620574 | G161: =IF(Sheet1!J$18=TRUE,Sheet2!C161,x0) -> 1.56 | H161: =IF(Sheet1!J$18=TRUE,Sheet2!D161,y0) -> 4.651561043
C162: 1.57 | D162: 4.697620574 | E162: 4.697620574 | F162: 4.744136185 | G162: =IF(Sheet1!J$18=TRUE,Sheet2!C162,x0) -> 1.57 | H162: =IF(Sheet1!J$18=TRUE,Sheet2!D162,y0) -> 4.697620574
C163: 1.58 | D163: 4.744136185 | E163: 4.744136185 | F163: 4.79111239 | G163: =IF(Sheet1!J$18=TRUE,Sheet2!C163,x0) -> 1.58 | H163: =IF(Sheet1!J$18=TRUE,Sheet2!D163,y0) -> 4.744136185
C164: 1.59 | D164: 4.79111239 | E164: 4.79111239 | F164: 4.838553752 | G164: =IF(Sheet1!J$18=TRUE,Sheet2!C164,x0) -> 1.59 | H164: =IF(Sheet1!J$18=TRUE,Sheet2!D164,y0) -> 4.79111239
C165: 1.6 | D165: 4.838553752 | E165: 4.838553752 | F165: 4.886464876 | G165: =IF(Sheet1!J$18=TRUE,Sheet2!C165,x0) -> 1.6 | H165: =IF(Sheet1!J$18=TRUE,Sheet2!D165,y0) -> 4.838553752
C166: =C165+dx -> 1.61 | D166: 4.886464876 | E166: 4.886464876 | F166: 4.934850414 | G166: =IF(Sheet1!J$18=TRUE,Sheet2!C166,x0) -> 1.61 | H166: =IF(Sheet1!J$18=TRUE,Sheet2!D166,y0) -> 4.886464876
C167: 1.62 | D167: 4.934850414 | E167: 4.934850414 | F167: 4.983715063 | G167: =IF(Sheet1!J$18=TRUE,Sheet2!C167,x0) -> 1.62 | H167: =IF(Sheet1!J$18=TRUE,Sheet2!D167,y0) -> 4.934850414
C168: 1.63 | D168: 4.983715063 | E168: 4.983715063 | F168: 5.033063567 | G168: =IF(Sheet1!J$18=TRUE,Sheet2!C168,x0) -> 1.63 | H168: =IF(Sheet1!J$18=TRUE,Sheet2!D168,y0) -> 4.983715063
C169: 1.64 | D169: 5.033063567 | E169: 5.033063567 | F169: 5.082900717 | G169: =IF(Sheet1!J$18=TRUE,Sheet2!C169,x0) -> 1.64 | H169: =IF(Sheet1!J$18=TRUE,Sheet2!D169,y0) -> 5.033063567
C170: 1.65 | D170: 5.082900717 | E170: 5.082900717 | F170: 5.133231353 | G170: =IF(Sheet1!J$18=TRUE,Sheet2!C170,x0) -> 1.65 | H170: =IF(Sheet1!J$18=TRUE,Sheet2!D170,y0) -> 5.082900717
C171: 1.66 | D171: 5.133231353 | E171: 5.133231353 | F171: 5.18406036 | G171: =IF(Sheet1!J$18=TRUE,Sheet2!C171,x0) -> 1.66 | H171: =IF(Sheet1!J$18=TRUE,Sheet2!D171,y0) -> 5.133231353
C172: 1.67 | D172: 5.18406036 | E172: 5.18406036 | F172: 5.235392674 | G172: =IF(Sheet1!J$18=TRUE,Sheet2!C172,x0) -> 1.67 | H172: =IF(Sheet1!J$18=TRUE,Sheet2!D172,y0) -> 5.18406036
C173: 1.68 | D173: 5.235392674 | E173: 5.235392674 | F173: 5.287233277 | G173: =IF(Sheet1!J$18=TRUE,Sheet2!C173,x0) -> 1.68 | H173: =IF(Sheet1!J$18=TRUE,Sheet2!D173,y0) -> 5.235392674
C174: 1.69 | D174: 5.287233277 | E174: 5.287233277 | F174: 5.339587204 | G174: =IF(Sheet1!J$18=TRUE,Sheet2!C174,x0) -> 1.69 | H174: =IF(Sheet1!J$18=TRUE,Sheet2!D174,y0) -> 5.287233277
C175: 1.7 | D175: 5.339587204 | E175: 5.339587204 | F175: 5.392459537 | G175: =IF(Sheet1!J$18=TRUE,Sheet2!C175,x0) -> 1.7 | H175: =IF(Sheet1!J$18=TRUE,Sheet2!D175,y0) -> 5.339587204
C176: 1.71 | D176: 5.392459537 | E176: 5.392459537 | F176: 5.445855409 | G176: =IF(Sheet1!J$18=TRUE,Sheet2!C176,x0) -> 1.71 | H176: =IF(Sheet1!J$18=TRUE,Sheet2!D176,y0) -> 5.392459537
C177: 1.72 | D177: 5.445855409 | E177: 5.445855409 | F177: 5.499780004 | G177: =IF(Sheet1!J$18=TRUE,Sheet2!C177,x0) -> 1.72 | H177: =IF(Sheet1!J$18=TRUE,Sheet2!D177,y0) -> 5.445855409
C178: 1.73 | D178: 5.499780004 | E178: 5.499780004 | F178: 5.554238558 | G178: =IF(Sheet1!J$18=TRUE,Sheet2!C178,x0) -> 1.73 | H178: =IF(Sheet1!J$18=TRUE,Sheet2!D178,y0) -> 5.499780004
C179: 1.74 | D179: 5.554238558 | E179: 5.554238558 | F179: 5.609236358 | G179: =IF(Sheet1!J$18=TRUE,Sheet2!C179,x0) -> 1.74 | H179: =IF(Sheet1!J$18=TRUE,Sheet2!D179,y0) -> 5.554238558
C180: 1.75 | D180: 5.609236358 | E180: 5.609236358 | F180: 5.664778744 | G180: =IF(Sheet1!J$18=TRUE,Sheet2!C180,x0) -> 1.75 | H180: =IF(Sheet1!J$18=TRUE,Sheet2!D180,y0) -> 5.609236358
C181: 1.76 | D181: 5.664778744 | E181: 5.664778744 | F181: 5.720871107 | G181: =IF(Sheet1!J$18=TRUE,Sheet2!C181,x0) -> 1.76 | H181: =IF(Sheet1!J$18=TRUE,Sheet2!D181,y0) -> 5.664778744
C182: 1.77 | D182: 5.720871107 | E182: 5.720871107 | F182: 5.777518895 | G182: =IF(Sheet1!J$18=TRUE,Sheet2!C182,x0) -> 1.77 | H182: =IF(Sheet1!J$18=TRUE,Sheet2!D182,y0) -> 5.720871107
C183: 1.78 | D183: 5.777518895 | E183: 5.777518895 | F183: 5.834727606 | G183: =IF(Sheet1!J$18=TRUE,Sheet2!C183,x0) -> 1.78 | H183: =IF(Sheet1!J$18=TRUE,Sheet2!D183,y0) -> 5.777518895
C184: 1.79 | D184: 5.834727606 | E184: 5.834727606 | F184: 5.892502795 | G184: =IF(Sheet1!J$18=TRUE,Sheet2!C184,x0) -> 1.79 | H184: =IF(Sheet1!J$18=TRUE,Sheet2!D184,y0) -> 5.834727606
C185: 1.8 | D185: 5.892502795 | E185: 5.892502795 | F185: 5.950850071 | G185: =IF(Sheet1!J$18=TRUE,Sheet2!C185,x0) -> 1.8 | H185: =IF(Sheet1!J$18=TRUE,Sheet2!D185,y0) -> 5.892502795
C186: 1.81 | D186: 5.950850071 | E186: 5.950850071 | F186: 6.009775099 | G186: =IF(Sheet1!J$18=TRUE,Sheet2!C186,x0) -> 1.81 | H186: =IF(Sheet1!J$18=TRUE,Sheet2!D186,y0) -> 5.950850071
C187: 1.82 | D187: 6.009775099 | E187: 6.009775099 | F187: 6.0692836 | G187: =IF(Sheet1!J$18=TRUE,Sheet2!C187,x0) -> 1.82 | H187: =IF(Sheet1!J$18=TRUE,Sheet2!D187,y0) -> 6.009775099
C188: 1.83 | D188: 6.0692836 | E188: 6.0692836 | F188: 6.129381351 | G188: =IF(Sheet1!J$18=TRUE,Sheet2!C188,x0) -> 1.83 | H188: =IF(Sheet1!J$18=TRUE,Sheet2!D188,y0) -> 6.0692836
C189: 1.84 | D189: 6.129381351 | E189: 6.129381351 | F189: 6.190074187 | G189: =IF(Sheet1!J$18=TRUE,Sheet2!C189,x0) -> 1.84 | H189: =IF(Sheet1!J$18=TRUE,Sheet2!D189,y0) -> 6.129381351
C190: 1.85 | D190: 6.190074187 | E190: 6.190074187 | F190: 6.251368 | G190: =IF(Sheet1!J$18=TRUE,Sheet2!C190,x0) -> 1.85 | H190: =IF(Sheet1!J$18=TRUE,Sheet2!D190,y0) -> 6.190074187
C191: 1.86 | D191: 6.251368 | E191: 6.251368 | F191: 6.313268742 | G191: =IF(Sheet1!J$18=TRUE,Sheet2!C191,x0) -> 1.86 | H191: =IF(Sheet1!J$18=TRUE,Sheet2!D191,y0) -> 6.251368
C192: 1.87 | D192: 6.313268742 | E192: 6.313268742 | F192: 6.375782422 | G192: =IF(Sheet1!J$18=TRUE,Sheet2!C192,x0) -> 1.87 | H192: =IF(Sheet1!J$18=TRUE,Sheet2!D192,y0) -> 6.313268742
C193: 1.88 | D193: 6.375782422 | E193: 6.375782422 | F193: 6.438915109 | G193: =IF(Sheet1!J$18=TRUE,Sheet2!C193,x0) -> 1.88 | H193: =IF(Sheet1!J$18=TRUE,Sheet2!D193,y0) -> 6.375782422
C194: 1.89 | D194: 6.438915109 | E194: 6.438915109 | F194: 6.502672934 | G194: =IF(Sheet1!J$18=TRUE,Sheet2!C194,x0) -> 1.89 | H194: =IF(Sheet1!J$18=TRUE,Sheet2!D194,y0) -> 6.438915109
C195: 1.9 | D195: 6.502672934 | E195: =y -> 6.502672934 | F195: 6.567062085 | G195: =IF(Sheet1!J$18=TRUE,Sheet2!C195,x0) -> 1.9 | H195: =IF(Sheet1!J$18=TRUE,Sheet2!D195,y0) -> 6.502672934
C196: 1.91 | D196: 6.567062085 | E196: 6.567062085 | F196: 6.632088814 | G196: =IF(Sheet1!J$18=TRUE,Sheet2!C196,x0) -> 1.91 | H196: =IF(Sheet1!J$18=TRUE,Sheet2!D196,y0) -> 6.567062085
C197: 1.92 | D197: 6.632088814 | E197: 6.632088814 | F197: =D197+E196*dx -> 6.697759435 | G197: =IF(Sheet1!J$18=TRUE,Sheet2!C197,x0) -> 1.92 | H197: =IF(Sheet1!J$18=TRUE,Sheet2!D197,y0) -> 6.632088814
C198: =C197+dx -> 1.93 | D198: 6.697759435 | E198: 6.697759435 | F198: 6.764080323 | G198: =IF(Sheet1!J$18=TRUE,Sheet2!C198,x0) -> 1.93 | H198: =IF(Sheet1!J$18=TRUE,Sheet2!D198,y0) -> 6.697759435
C199: 1.94 | D199: =F198 -> 6.764080323 | E199: 6.764080323 | F199: 6.831057917 | G199: =IF(Sheet1!J$18=TRUE,Sheet2!C199,x0) -> 1.94 | H199: =IF(Sheet1!J$18=TRUE,Sheet2!D199,y0) -> 6.764080323
C200: 1.95 | D200: 6.831057917 | E200: 6.831057917 | F200: 6.898698721 | G200: =IF(Sheet1!J$18=TRUE,Sheet2!C200,x0) -> 1.95 | H200: =IF(Sheet1!J$18=TRUE,Sheet2!D200,y0) -> 6.831057917
... 1018 more rows

Sheet Sheet3
